[Event "Titled Tuesday Blitz December 13 Early 2022"]
[White "Perera Alfonso, Rene Humberto"]
[Black "De Souza, Cristiano Gomes"]
[WhiteFideId "3514722"]
[BlackFideId "2151758"]
[WhiteElo "2313"]
[BlackElo "2068"]
[Result "1-0"]
[Round "01"]
[TimeControl "180+1"]
[Date "2022.12.14"]
[WhiteClock "0:02:47"]
[BlackClock "0:02:11"]

1. e4 {[%clk 0:03:00]}  c5 {[%clk 0:02:59]} 2. Nf3 {[%clk 0:03:00]}  d6 {[%clk 0:02:59]} 3. d4 {[%clk 0:03:01]}  cxd4 {[%clk 0:02:59]} 4. Nxd4 {[%clk 0:03:01]}  Nf6 {[%clk 0:03:00]} 5. Nc3 {[%clk 0:03:01]}  a6 {[%clk 0:02:59]} 6. Be3 {[%clk 0:03:01]}  e5 {[%clk 0:02:59]} 7. Nb3 {[%clk 0:03:01]}  Be6 {[%clk 0:03:00]} 8. h3 {[%clk 0:03:00]}  Be7 {[%clk 0:03:00]} 9. Qf3 {[%clk 0:03:00]}  O-O {[%clk 0:02:53]} 10. O-O-O {[%clk 0:03:00]}  Nbd7 {[%clk 0:02:53]} 11. g4 {[%clk 0:03:00]}  b5 {[%clk 0:02:51]} 12. g5 {[%clk 0:03:00]}  Ne8 {[%clk 0:02:49]} 13. h4 {[%clk 0:03:00]}  Nc7 {[%clk 0:02:46]} 14. Kb1 {[%clk 0:02:58]}  b4 {[%clk 0:02:46]} 15. Nd5 {[%clk 0:02:56]}  Bxd5 {[%clk 0:02:46]} 16. exd5 {[%clk 0:02:57]}  a5 {[%clk 0:02:45]} 17. Bd3 {[%clk 0:02:56]}  a4 {[%clk 0:02:42]} 18. Nd2 {[%clk 0:02:55]}  Nb5 {[%clk 0:02:38]} 19. h5 {[%clk 0:02:53]}  Rb8 {[%clk 0:02:28]} 20. Qf5 {[%clk 0:02:49]}  g6 {[%clk 0:02:25]} 21. hxg6 {[%clk 0:02:50]}  fxg6 {[%clk 0:02:24]} 22. Qe6+ {[%clk 0:02:49]}  Kg7 {[%clk 0:02:16]} 23. Rxh7+ {[%clk 0:02:47]}  Kxh7 {[%clk 0:02:11]} 24. Qxg6+ {[%clk 0:02:47]} 1-0


[Site "https://www.chess.com"]

[Event "Titled Tuesday Blitz December 13 Early 2022"]
[White "Petrova, Irina"]
[Black "Kalashian, David"]
[WhiteFideId "14124122"]
[BlackFideId "13302418"]
[WhiteElo "2023"]
[BlackElo "2490"]
[Result "0-1"]
[Round "01"]
[TimeControl "180+1"]
[Date "2022.12.14"]
[WhiteClock "0:00:04"]
[BlackClock "0:01:15"]

1. e4 {[%clk 0:02:58]}  c6 {[%clk 0:02:59]} 2. d4 {[%clk 0:02:58]}  g6 {[%clk 0:03:00]} 3. Nc3 {[%clk 0:02:56]}  Bg7 {[%clk 0:03:01]} 4. f4 {[%clk 0:02:56]}  d5 {[%clk 0:03:00]} 5. e5 {[%clk 0:02:57]}  h5 {[%clk 0:03:01]} 6. Nf3 {[%clk 0:02:51]}  Nh6 {[%clk 0:03:01]} 7. Be3 {[%clk 0:02:50]}  Bg4 {[%clk 0:03:00]} 8. Be2 {[%clk 0:02:48]}  Nf5 {[%clk 0:03:00]} 9. Bf2 {[%clk 0:02:48]}  Bxf3 {[%clk 0:02:59]} 10. Bxf3 {[%clk 0:02:49]}  e6 {[%clk 0:02:59]} 11. O-O {[%clk 0:02:48]}  Nd7 {[%clk 0:02:59]} 12. Ne2 {[%clk 0:02:46]}  h4 {[%clk 0:02:59]} 13. b3 {[%clk 0:02:43]}  Bf8 {[%clk 0:02:51]} 14. c4 {[%clk 0:02:42]}  Be7 {[%clk 0:02:50]} 15. Nc3 {[%clk 0:02:17]}  Kf8 {[%clk 0:02:49]} 16. Rc1 {[%clk 0:02:15]}  Kg7 {[%clk 0:02:48]} 17. Qe2 {[%clk 0:01:49]}  Qa5 {[%clk 0:02:46]} 18. cxd5 {[%clk 0:01:42]}  cxd5 {[%clk 0:02:45]} 19. Qb5 {[%clk 0:01:16]}  Bb4 {[%clk 0:02:27]} 20. Qxd7 {[%clk 0:01:00]}  Bxc3 {[%clk 0:02:26]} 21. Kh1 {[%clk 0:00:42]}  Bxd4 {[%clk 0:02:13]} 22. Rc7 {[%clk 0:00:38]}  Raf8 {[%clk 0:01:57]} 23. Bxd4 {[%clk 0:00:38]}  Nxd4 {[%clk 0:01:57]} 24. Bg4 {[%clk 0:00:37]}  Qb5 {[%clk 0:01:26]} 25. Qxb5 {[%clk 0:00:33]}  Nxb5 {[%clk 0:01:27]} 26. Rxb7 {[%clk 0:00:33]}  Rb8 {[%clk 0:01:27]} 27. Rxb8 {[%clk 0:00:16]}  Rxb8 {[%clk 0:01:28]} 28. Rc1 {[%clk 0:00:16]}  d4 {[%clk 0:01:23]} 29. Kg1 {[%clk 0:00:14]}  Nc3 {[%clk 0:01:23]} 30. Rc2 {[%clk 0:00:12]}  Nd5 {[%clk 0:01:20]} 31. Kf2 {[%clk 0:00:11]}  Ne3 {[%clk 0:01:20]} 32. Rc7 {[%clk 0:00:09]}  Nxg4+ {[%clk 0:01:20]} 33. Ke2 {[%clk 0:00:07]}  a5 {[%clk 0:01:17]} 34. Kd3 {[%clk 0:00:06]}  Rd8 {[%clk 0:01:17]} 35. Rc4 {[%clk 0:00:06]}  Nf2+ {[%clk 0:01:17]} 36. Ke2 {[%clk 0:00:05]}  d3+ {[%clk 0:01:16]} 37. Kd2 {[%clk 0:00:04]}  h3 {[%clk 0:01:17]} 38. gxh3 {[%clk 0:00:04]}  Nxh3 {[%clk 0:01:17]} 39. Rc3 {[%clk 0:00:05]}  Nxf4 {[%clk 0:01:17]} 40. a3 {[%clk 0:00:04]}  Rh8 {[%clk 0:01:15]} 0-1


[Site "https://www.chess.com"]

[Event "Titled Tuesday Blitz December 13 Early 2022"]
[White "Pichot, Alan"]
[Black "Hirneise, Jens"]
[WhiteFideId "110973"]
[BlackFideId "24614734"]
[WhiteElo "2561"]
[BlackElo "2345"]
[Result "1-0"]
[Round "01"]
[TimeControl "180+1"]
[Date "2022.12.14"]
[WhiteClock "0:00:55"]
[BlackClock "0:00:37"]

1. Nf3 {[%clk 0:02:56]}  c6 {[%clk 0:02:59]} 2. d4 {[%clk 0:02:52]}  d5 {[%clk 0:03:00]} 3. Bf4 {[%clk 0:02:51]}  Nf6 {[%clk 0:02:59]} 4. e3 {[%clk 0:02:51]}  g6 {[%clk 0:02:59]} 5. h3 {[%clk 0:02:51]}  Bg7 {[%clk 0:02:59]} 6. Nbd2 {[%clk 0:02:50]}  O-O {[%clk 0:02:59]} 7. Bh2 {[%clk 0:02:50]}  Nbd7 {[%clk 0:02:58]} 8. c3 {[%clk 0:02:50]}  Ne4 {[%clk 0:02:57]} 9. Nxe4 {[%clk 0:02:49]}  dxe4 {[%clk 0:02:57]} 10. Nd2 {[%clk 0:02:50]}  f5 {[%clk 0:02:56]} 11. Nc4 {[%clk 0:02:45]}  b5 {[%clk 0:02:50]} 12. Nd2 {[%clk 0:02:37]}  e5 {[%clk 0:02:48]} 13. Be2 {[%clk 0:02:35]}  Qe7 {[%clk 0:02:45]} 14. a4 {[%clk 0:02:35]}  bxa4 {[%clk 0:02:39]} 15. Qxa4 {[%clk 0:02:33]}  c5 {[%clk 0:02:22]} 16. d5 {[%clk 0:02:15]}  Nb6 {[%clk 0:02:19]} 17. Qb3 {[%clk 0:02:15]}  Qd6 {[%clk 0:02:15]} 18. c4 {[%clk 0:02:08]}  Bd7 {[%clk 0:02:07]} 19. O-O {[%clk 0:02:08]}  Rfb8 {[%clk 0:02:05]} 20. Qc2 {[%clk 0:02:06]}  Nc8 {[%clk 0:01:58]} 21. Qc3 {[%clk 0:02:00]}  Qb6 {[%clk 0:01:50]} 22. b3 {[%clk 0:01:51]}  Qb4 {[%clk 0:01:32]} 23. Qxb4 {[%clk 0:01:51]}  Rxb4 {[%clk 0:01:29]} 24. Ra5 {[%clk 0:01:51]}  f4 {[%clk 0:01:19]} 25. Nxe4 {[%clk 0:01:48]}  Rxb3 {[%clk 0:01:18]} 26. Nxc5 {[%clk 0:01:48]}  Rb2 {[%clk 0:01:16]} 27. Bd3 {[%clk 0:01:38]}  Be8 {[%clk 0:01:07]} 28. exf4 {[%clk 0:01:38]}  exf4 {[%clk 0:01:05]} 29. Bxf4 {[%clk 0:01:38]}  Nb6 {[%clk 0:01:02]} 30. Ne6 {[%clk 0:01:34]}  Bc3 {[%clk 0:00:59]} 31. Rc5 {[%clk 0:01:26]}  Nd7 {[%clk 0:00:51]} 32. Rc7 {[%clk 0:01:20]}  Ba5 {[%clk 0:00:50]} 33. Rc6 {[%clk 0:01:03]}  Nb6 {[%clk 0:00:50]} 34. Rc5 {[%clk 0:00:57]}  Bb4 {[%clk 0:00:44]} 35. Rc7 {[%clk 0:00:56]}  a5 {[%clk 0:00:37]} 36. Rg7+ {[%clk 0:00:55]}  Kh8 {[%clk 0:00:37]} 37. Be5 {[%clk 0:00:55]} 1-0


[Site "https://www.chess.com"]

[Event "Titled Tuesday Blitz December 13 Early 2022"]
[White "Przybylski, Wojciech"]
[Black "Koellner, Ruben Gideon"]
[WhiteFideId "1117599"]
[BlackFideId "12993093"]
[WhiteElo "2217"]
[BlackElo "2303"]
[Result "1-0"]
[Round "01"]
[TimeControl "180+1"]
[Date "2022.12.14"]
[WhiteClock "0:00:07"]
[BlackClock "0:00:06"]

1. e4 {[%clk 0:02:56]}  d6 {[%clk 0:02:59]} 2. d4 {[%clk 0:02:55]}  Nf6 {[%clk 0:02:59]} 3. Nc3 {[%clk 0:02:52]}  e5 {[%clk 0:03:00]} 4. Nf3 {[%clk 0:02:51]}  Nbd7 {[%clk 0:03:00]} 5. a4 {[%clk 0:02:48]}  c6 {[%clk 0:02:58]} 6. a5 {[%clk 0:02:47]}  Be7 {[%clk 0:02:40]} 7. g4 {[%clk 0:02:36]}  h6 {[%clk 0:02:23]} 8. Rg1 {[%clk 0:02:26]}  exd4 {[%clk 0:02:12]} 9. Nxd4 {[%clk 0:02:25]}  Ne5 {[%clk 0:02:12]} 10. Nf5 {[%clk 0:02:22]}  Bxf5 {[%clk 0:01:47]} 11. gxf5 {[%clk 0:02:21]}  g5 {[%clk 0:01:35]} 12. f4 {[%clk 0:02:12]}  gxf4 {[%clk 0:01:32]} 13. Bxf4 {[%clk 0:02:12]}  Qc7 {[%clk 0:01:24]} 14. Qe2 {[%clk 0:02:06]}  O-O-O {[%clk 0:01:22]} 15. a6 {[%clk 0:02:04]}  b5 {[%clk 0:01:20]} 16. Rg3 {[%clk 0:01:57]}  Rhg8 {[%clk 0:01:00]} 17. Bg2 {[%clk 0:01:37]}  Rxg3 {[%clk 0:00:54]} 18. hxg3 {[%clk 0:01:38]}  h5 {[%clk 0:00:50]} 19. Nd1 {[%clk 0:01:28]}  Nfg4 {[%clk 0:00:47]} 20. Ne3 {[%clk 0:01:21]}  Qb6 {[%clk 0:00:40]} 21. O-O-O {[%clk 0:01:00]}  Qxa6 {[%clk 0:00:31]} 22. Kb1 {[%clk 0:01:00]}  Qb6 {[%clk 0:00:31]} 23. Rh1 {[%clk 0:00:56]}  Nf6 {[%clk 0:00:18]} 24. Bg5 {[%clk 0:00:52]}  Rg8 {[%clk 0:00:16]} 25. Bh4 {[%clk 0:00:50]}  Kd7 {[%clk 0:00:14]} 26. Rd1 {[%clk 0:00:49]}  Ke8 {[%clk 0:00:13]} 27. Qd2 {[%clk 0:00:47]}  Qc5 {[%clk 0:00:11]} 28. Re1 {[%clk 0:00:29]}  Nfg4 {[%clk 0:00:11]} 29. Nxg4 {[%clk 0:00:27]}  Rxg4 {[%clk 0:00:10]} 30. f6 {[%clk 0:00:26]}  Bf8 {[%clk 0:00:09]} 31. Qe2 {[%clk 0:00:23]}  Qc4 {[%clk 0:00:09]} 32. Qe3 {[%clk 0:00:20]}  Qc5 {[%clk 0:00:08]} 33. Qb3 {[%clk 0:00:18]}  Nc4 {[%clk 0:00:07]} 34. Qc3 {[%clk 0:00:11]}  Qf2 {[%clk 0:00:06]} 35. Bh3 {[%clk 0:00:10]}  Rg6 {[%clk 0:00:04]} 36. Rd1 {[%clk 0:00:09]}  Kd8 {[%clk 0:00:03]} 37. Bf5 {[%clk 0:00:09]}  Kc7 {[%clk 0:00:03]} 38. Bxg6 {[%clk 0:00:09]}  fxg6 {[%clk 0:00:04]} 39. e5 {[%clk 0:00:09]}  Nxe5 {[%clk 0:00:04]} 40. f7 {[%clk 0:00:10]}  Qxf7 {[%clk 0:00:04]} 41. Qa3 {[%clk 0:00:10]}  Kb7 {[%clk 0:00:04]} 42. Bd8 {[%clk 0:00:09]}  Qd7 {[%clk 0:00:03]} 43. Bf6 {[%clk 0:00:09]}  Be7 {[%clk 0:00:03]} 44. Bxe5 {[%clk 0:00:09]}  Qe6 {[%clk 0:00:02]} 45. Bxd6 {[%clk 0:00:09]}  Bxd6 {[%clk 0:00:03]} 46. Qxd6 {[%clk 0:00:08]}  Qg4 {[%clk 0:00:02]} 47. Qe7+ {[%clk 0:00:08]}  Kb6 {[%clk 0:00:03]} 48. Qd8+ {[%clk 0:00:08]}  Kb7 {[%clk 0:00:03]} 49. Rd7+ {[%clk 0:00:08]}  Ka6 {[%clk 0:00:04]} 50. Qc8+ {[%clk 0:00:08]}  Kb6 {[%clk 0:00:04]} 51. Qc7+ {[%clk 0:00:08]}  Kc5 {[%clk 0:00:05]} 52. Qxa7+ {[%clk 0:00:08]}  Kc4 {[%clk 0:00:05]} 53. b3+ {[%clk 0:00:08]}  Kc3 {[%clk 0:00:05]} 54. Qa1+ {[%clk 0:00:07]}  Kb4 {[%clk 0:00:05]} 55. Rd4+ {[%clk 0:00:08]}  Kc5 {[%clk 0:00:05]} 56. Rxg4 {[%clk 0:00:07]}  hxg4 {[%clk 0:00:06]} 57. Qe5+ {[%clk 0:00:07]} 1-0


[Site "https://www.chess.com"]

[Event "Titled Tuesday Blitz December 13 Early 2022"]
[White "Roque Sola, Gisela"]
[Black "Javakhishvili, Lela"]
[WhiteFideId "5120241"]
[BlackFideId "13601458"]
[WhiteElo "1961"]
[BlackElo "2364"]
[Result "1-0"]
[Round "01"]
[TimeControl "180+1"]
[Date "2022.12.14"]
[WhiteClock "0:00:03"]
[BlackClock "0:00:01"]

1. e4 {[%clk 0:02:58]}  c5 {[%clk 0:02:58]} 2. Nf3 {[%clk 0:02:57]}  e6 {[%clk 0:02:58]} 3. d4 {[%clk 0:02:58]}  cxd4 {[%clk 0:02:58]} 4. Nxd4 {[%clk 0:02:58]}  a6 {[%clk 0:02:58]} 5. Nc3 {[%clk 0:02:59]}  b5 {[%clk 0:02:58]} 6. Be3 {[%clk 0:02:45]}  Bb7 {[%clk 0:02:56]} 7. Bd3 {[%clk 0:02:41]}  Nf6 {[%clk 0:02:43]} 8. f3 {[%clk 0:02:40]}  Be7 {[%clk 0:02:39]} 9. O-O {[%clk 0:02:38]}  O-O {[%clk 0:02:38]} 10. Qd2 {[%clk 0:02:29]}  Qc7 {[%clk 0:02:29]} 11. a3 {[%clk 0:02:27]}  d6 {[%clk 0:02:28]} 12. Qf2 {[%clk 0:02:24]}  Nbd7 {[%clk 0:02:27]} 13. Nde2 {[%clk 0:02:17]}  Ne5 {[%clk 0:02:20]} 14. Rad1 {[%clk 0:02:06]}  Nc4 {[%clk 0:02:18]} 15. Bxc4 {[%clk 0:02:05]}  Qxc4 {[%clk 0:02:19]} 16. Rd4 {[%clk 0:02:01]}  Qc7 {[%clk 0:02:18]} 17. Rfd1 {[%clk 0:02:01]}  Rac8 {[%clk 0:02:17]} 18. Qg3 {[%clk 0:01:52]}  Rfd8 {[%clk 0:02:13]} 19. Bh6 {[%clk 0:01:41]}  Bf8 {[%clk 0:02:08]} 20. Bg5 {[%clk 0:01:37]}  Kh8 {[%clk 0:02:04]} 21. Qh4 {[%clk 0:01:24]}  Be7 {[%clk 0:02:02]} 22. Kh1 {[%clk 0:01:20]}  Bc6 {[%clk 0:01:58]} 23. Ng3 {[%clk 0:01:17]}  Rd7 {[%clk 0:01:37]} 24. Nce2 {[%clk 0:01:01]}  Kg8 {[%clk 0:01:26]} 25. c3 {[%clk 0:00:59]}  a5 {[%clk 0:01:22]} 26. Nh5 {[%clk 0:00:50]}  Nxh5 {[%clk 0:01:21]} 27. Bxe7 {[%clk 0:00:50]}  Rxe7 {[%clk 0:01:17]} 28. Qxh5 {[%clk 0:00:50]}  Rd7 {[%clk 0:01:16]} 29. Ng3 {[%clk 0:00:43]}  Qd8 {[%clk 0:01:03]} 30. Qg4 {[%clk 0:00:40]}  Qe7 {[%clk 0:00:59]} 31. f4 {[%clk 0:00:32]}  Rcd8 {[%clk 0:00:37]} 32. f5 {[%clk 0:00:25]}  e5 {[%clk 0:00:37]} 33. R4d2 {[%clk 0:00:22]}  f6 {[%clk 0:00:35]} 34. Nh5 {[%clk 0:00:16]}  Kh8 {[%clk 0:00:31]} 35. h3 {[%clk 0:00:12]}  d5 {[%clk 0:00:26]} 36. exd5 {[%clk 0:00:12]}  Rxd5 {[%clk 0:00:26]} 37. Rxd5 {[%clk 0:00:13]}  Rxd5 {[%clk 0:00:26]} 38. Rxd5 {[%clk 0:00:13]}  Bxd5 {[%clk 0:00:27]} 39. Ng3 {[%clk 0:00:13]}  e4 {[%clk 0:00:24]} 40. Qe2 {[%clk 0:00:12]}  Bc6 {[%clk 0:00:19]} 41. Qe3 {[%clk 0:00:12]}  Qe5 {[%clk 0:00:17]} 42. Qb6 {[%clk 0:00:11]}  Be8 {[%clk 0:00:16]} 43. Qd8 {[%clk 0:00:11]}  h6 {[%clk 0:00:14]} 44. Kg1 {[%clk 0:00:09]}  e3 {[%clk 0:00:14]} 45. Ne2 {[%clk 0:00:08]}  Kh7 {[%clk 0:00:14]} 46. Kf1 {[%clk 0:00:08]}  a4 {[%clk 0:00:09]} 47. g4 {[%clk 0:00:08]}  Bc6 {[%clk 0:00:09]} 48. Qd3 {[%clk 0:00:07]}  Qe7 {[%clk 0:00:07]} 49. Ke1 {[%clk 0:00:06]}  Ba8 {[%clk 0:00:07]} 50. Nf4 {[%clk 0:00:07]}  Qb7 {[%clk 0:00:07]} 51. Ke2 {[%clk 0:00:07]}  Qh1 {[%clk 0:00:07]} 52. Kxe3 {[%clk 0:00:06]}  Qh2 {[%clk 0:00:06]} 53. Kd4 {[%clk 0:00:07]}  Qxf4+ {[%clk 0:00:06]} 54. Kc5 {[%clk 0:00:06]}  Qb8 {[%clk 0:00:05]} 55. Qxb5 {[%clk 0:00:05]}  Qe5+ {[%clk 0:00:05]} 56. Kb4 {[%clk 0:00:05]}  Qf4+ {[%clk 0:00:05]} 57. Ka5 {[%clk 0:00:04]}  Be4 {[%clk 0:00:03]} 58. Qxa4 {[%clk 0:00:03]}  Qe5+ {[%clk 0:00:03]} 59. Qb5 {[%clk 0:00:03]}  Qc7+ {[%clk 0:00:02]} 60. Qb6 {[%clk 0:00:03]}  Qe5+ {[%clk 0:00:02]} 61. Ka4 {[%clk 0:00:02]}  Bg2 {[%clk 0:00:01]} 62. b4 {[%clk 0:00:03]} 1-0


[Site "https://www.chess.com"]

[Event "Titled Tuesday Blitz December 13 Early 2022"]
[White "Roque Sola, Jose Luis"]
[Black "Yedidia, Daniel"]
[WhiteFideId "5120390"]
[BlackFideId "30905907"]
[WhiteElo "2117"]
[BlackElo "2554"]
[Result "0-1"]
[Round "01"]
[TimeControl "180+1"]
[Date "2022.12.14"]
[WhiteClock "0:00:13"]
[BlackClock "0:00:34"]

1. c4 {[%clk 0:02:57]}  e5 {[%clk 0:02:56]} 2. Nc3 {[%clk 0:02:56]}  Nf6 {[%clk 0:02:55]} 3. Nf3 {[%clk 0:02:55]}  Nc6 {[%clk 0:02:54]} 4. g3 {[%clk 0:02:54]}  Bb4 {[%clk 0:02:53]} 5. d3 {[%clk 0:02:43]}  e4 {[%clk 0:02:45]} 6. dxe4 {[%clk 0:02:25]}  Nxe4 {[%clk 0:02:42]} 7. Qc2 {[%clk 0:02:22]}  Nxc3 {[%clk 0:02:37]} 8. bxc3 {[%clk 0:02:21]}  Be7 {[%clk 0:02:34]} 9. Bg2 {[%clk 0:02:21]}  O-O {[%clk 0:02:32]} 10. O-O {[%clk 0:02:21]}  d6 {[%clk 0:02:29]} 11. Rb1 {[%clk 0:02:20]}  g6 {[%clk 0:02:28]} 12. Nd4 {[%clk 0:02:04]}  Na5 {[%clk 0:02:16]} 13. Bh6 {[%clk 0:01:42]}  Re8 {[%clk 0:02:00]} 14. Qa4 {[%clk 0:01:28]}  c6 {[%clk 0:01:59]} 15. Rfd1 {[%clk 0:01:16]}  a6 {[%clk 0:01:52]} 16. Nb3 {[%clk 0:01:03]}  Nxb3 {[%clk 0:01:49]} 17. Qxb3 {[%clk 0:01:04]}  Bf6 {[%clk 0:01:43]} 18. Be3 {[%clk 0:00:47]}  Qa5 {[%clk 0:01:41]} 19. Rxd6 {[%clk 0:00:28]}  Bf5 {[%clk 0:01:17]} 20. Rbd1 {[%clk 0:00:28]}  Be5 {[%clk 0:00:57]} 21. Bb6 {[%clk 0:00:18]}  Qxc3 {[%clk 0:00:52]} 22. Rd8 {[%clk 0:00:17]}  Qxb3 {[%clk 0:00:34]} 23. axb3 {[%clk 0:00:18]}  Bc2 {[%clk 0:00:34]} 24. Rxe8+ {[%clk 0:00:17]}  Rxe8 {[%clk 0:00:34]} 25. Rd8 {[%clk 0:00:18]}  Rxd8 {[%clk 0:00:34]} 26. Bxd8 {[%clk 0:00:19]}  Bxb3 {[%clk 0:00:35]} 27. c5 {[%clk 0:00:18]}  Bc3 {[%clk 0:00:33]} 28. e4 {[%clk 0:00:16]}  a5 {[%clk 0:00:33]} 29. f4 {[%clk 0:00:14]}  a4 {[%clk 0:00:34]} 30. e5 {[%clk 0:00:13]}  a3 {[%clk 0:00:34]} 0-1


[Site "https://www.chess.com"]

[Event "Titled Tuesday Blitz December 13 Early 2022"]
[White "Sailer, Mike"]
[Black "Walentukiewicz, Michal"]
[WhiteFideId "2012901"]
[BlackFideId "1126903"]
[WhiteElo "2109"]
[BlackElo "2028"]
[Result "0-1"]
[Round "01"]
[TimeControl "180+1"]
[Date "2022.12.14"]
[WhiteClock "0:00:01"]
[BlackClock "0:01:40"]

1. Nf3 {[%clk 0:03:00]}  Nf6 {[%clk 0:02:59]} 2. c4 {[%clk 0:03:00]}  c5 {[%clk 0:03:00]} 3. g3 {[%clk 0:03:01]}  g6 {[%clk 0:03:00]} 4. Bg2 {[%clk 0:03:02]}  Bg7 {[%clk 0:03:00]} 5. O-O {[%clk 0:03:02]}  O-O {[%clk 0:03:00]} 6. Nc3 {[%clk 0:03:03]}  Nc6 {[%clk 0:03:01]} 7. d4 {[%clk 0:02:57]}  cxd4 {[%clk 0:03:02]} 8. Nxd4 {[%clk 0:02:57]}  Nxd4 {[%clk 0:03:02]} 9. Qxd4 {[%clk 0:02:57]}  d6 {[%clk 0:03:03]} 10. Bg5 {[%clk 0:02:55]}  Be6 {[%clk 0:03:03]} 11. Qh4 {[%clk 0:02:48]}  Qc7 {[%clk 0:03:01]} 12. b3 {[%clk 0:02:43]}  Rfc8 {[%clk 0:03:01]} 13. Rac1 {[%clk 0:02:42]}  a6 {[%clk 0:03:01]} 14. Rfd1 {[%clk 0:02:32]}  Rab8 {[%clk 0:03:00]} 15. a4 {[%clk 0:02:13]}  h5 {[%clk 0:02:57]} 16. e4 {[%clk 0:02:05]}  Qa5 {[%clk 0:02:51]} 17. Nd5 {[%clk 0:02:03]}  Bxd5 {[%clk 0:02:51]} 18. exd5 {[%clk 0:02:03]}  b5 {[%clk 0:02:50]} 19. axb5 {[%clk 0:01:52]}  axb5 {[%clk 0:02:50]} 20. Ra1 {[%clk 0:01:51]}  Qc7 {[%clk 0:02:46]} 21. Rac1 {[%clk 0:01:34]}  bxc4 {[%clk 0:02:46]} 22. bxc4 {[%clk 0:01:32]}  Rb4 {[%clk 0:02:40]} 23. Bf1 {[%clk 0:01:28]}  Qb7 {[%clk 0:02:23]} 24. Bd2 {[%clk 0:01:10]}  Ra4 {[%clk 0:02:13]} 25. Bc3 {[%clk 0:00:26]}  Ng4 {[%clk 0:02:11]} 26. Bxg7 {[%clk 0:00:25]}  Kxg7 {[%clk 0:02:12]} 27. Re1 {[%clk 0:00:21]}  Ne5 {[%clk 0:02:10]} 28. Qd4 {[%clk 0:00:17]}  Kg8 {[%clk 0:02:08]} 29. Rxe5 {[%clk 0:00:17]}  dxe5 {[%clk 0:02:09]} 30. Qxe5 {[%clk 0:00:18]}  Qc7 {[%clk 0:02:04]} 31. Qxc7 {[%clk 0:00:15]}  Rxc7 {[%clk 0:02:04]} 32. c5 {[%clk 0:00:15]}  Rd4 {[%clk 0:02:04]} 33. Bg2 {[%clk 0:00:13]}  Kg7 {[%clk 0:02:04]} 34. c6 {[%clk 0:00:11]}  Kf6 {[%clk 0:02:04]} 35. Re1 {[%clk 0:00:09]}  Rd2 {[%clk 0:02:00]} 36. h4 {[%clk 0:00:09]}  Ra7 {[%clk 0:02:00]} 37. Rb1 {[%clk 0:00:08]}  Raa2 {[%clk 0:01:58]} 38. Rf1 {[%clk 0:00:08]}  Rac2 {[%clk 0:01:56]} 39. Be4 {[%clk 0:00:07]}  Rc4 {[%clk 0:01:55]} 40. Bf3 {[%clk 0:00:08]}  Rc3 {[%clk 0:01:55]} 41. Kg2 {[%clk 0:00:08]}  Ke5 {[%clk 0:01:52]} 42. Re1+ {[%clk 0:00:07]}  Kd6 {[%clk 0:01:53]} 43. Ra1 {[%clk 0:00:03]}  Rcc2 {[%clk 0:01:52]} 44. Rf1 {[%clk 0:00:03]}  e5 {[%clk 0:01:44]} 45. dxe6 {[%clk 0:00:03]}  fxe6 {[%clk 0:01:45]} 46. Kg1 {[%clk 0:00:04]}  Rc4 {[%clk 0:01:43]} 47. Bg2 {[%clk 0:00:04]}  e5 {[%clk 0:01:43]} 48. Bf3 {[%clk 0:00:04]}  e4 {[%clk 0:01:44]} 49. Bg2 {[%clk 0:00:03]}  Ke5 {[%clk 0:01:44]} 50. Re1 {[%clk 0:00:03]}  Rdd4 {[%clk 0:01:41]} 51. f3 {[%clk 0:00:02]}  Rxc6 {[%clk 0:01:40]} 52. Rxe4+ {[%clk 0:00:01]}  Rxe4 {[%clk 0:01:40]} 53. fxe4 {[%clk 0:00:01]}  Rc3 {[%clk 0:01:40]} 54. Kf2 {[%clk 0:00:02]}  Ra3 {[%clk 0:01:40]} 55. Ke2 {[%clk 0:00:01]}  Kd4 {[%clk 0:01:40]} 0-1


[Site "https://www.chess.com"]

[Event "Titled Tuesday Blitz December 13 Early 2022"]
[White "Samarth, J Rao"]
[Black "Gabdrakhmanov, Azat"]
[WhiteFideId "46652370"]
[BlackFideId "34189197"]
[WhiteElo "1564"]
[BlackElo "2254"]
[Result "0-1"]
[Round "01"]
[TimeControl "180+1"]
[Date "2022.12.14"]
[WhiteClock "0:00:02"]
[BlackClock "0:01:16"]

1. c4 {[%clk 0:02:25]}  c5 {[%clk 0:02:54]} 2. e3 {[%clk 0:02:23]}  Nf6 {[%clk 0:02:53]} 3. d4 {[%clk 0:02:23]}  e6 {[%clk 0:02:52]} 4. d5 {[%clk 0:02:23]}  exd5 {[%clk 0:02:52]} 5. cxd5 {[%clk 0:02:24]}  d6 {[%clk 0:02:52]} 6. Nc3 {[%clk 0:02:24]}  g6 {[%clk 0:02:53]} 7. Nf3 {[%clk 0:02:17]}  Bg7 {[%clk 0:02:53]} 8. Bc4 {[%clk 0:02:13]}  O-O {[%clk 0:02:54]} 9. O-O {[%clk 0:02:07]}  a6 {[%clk 0:02:54]} 10. a4 {[%clk 0:02:07]}  Bg4 {[%clk 0:02:53]} 11. h3 {[%clk 0:02:06]}  Bxf3 {[%clk 0:02:54]} 12. Qxf3 {[%clk 0:02:07]}  Nbd7 {[%clk 0:02:54]} 13. Qe2 {[%clk 0:02:00]}  Re8 {[%clk 0:02:54]} 14. a5 {[%clk 0:01:46]}  Ne5 {[%clk 0:02:38]} 15. Bb3 {[%clk 0:01:45]}  b5 {[%clk 0:02:37]} 16. axb6 {[%clk 0:01:43]}  Qxb6 {[%clk 0:02:36]} 17. Ba4 {[%clk 0:01:43]}  Re7 {[%clk 0:02:30]} 18. f4 {[%clk 0:01:40]}  Ned7 {[%clk 0:02:30]} 19. Bc6 {[%clk 0:01:10]}  Ra7 {[%clk 0:02:30]} 20. Qc4 {[%clk 0:01:06]}  h6 {[%clk 0:02:16]} 21. Ra3 {[%clk 0:01:06]}  Qb4 {[%clk 0:01:57]} 22. Ra4 {[%clk 0:00:58]}  Qxc4 {[%clk 0:01:56]} 23. Rxc4 {[%clk 0:00:59]}  Nb6 {[%clk 0:01:54]} 24. b3 {[%clk 0:00:57]}  Nxc4 {[%clk 0:01:54]} 25. bxc4 {[%clk 0:00:58]}  Ng4 {[%clk 0:01:48]} 26. Nd1 {[%clk 0:00:40]}  Nf6 {[%clk 0:01:47]} 27. Nc3 {[%clk 0:00:17]}  Ne4 {[%clk 0:01:42]} 28. Na4 {[%clk 0:00:09]}  Nc3 {[%clk 0:01:38]} 29. Nxc3 {[%clk 0:00:06]}  Bxc3 {[%clk 0:01:39]} 30. Rf2 {[%clk 0:00:03]}  a5 {[%clk 0:01:38]} 31. Rc2 {[%clk 0:00:03]}  Bf6 {[%clk 0:01:34]} 32. Ba4 {[%clk 0:00:02]}  Reb7 {[%clk 0:01:25]} 33. Bb5 {[%clk 0:00:02]}  a4 {[%clk 0:01:15]} 34. Ra2 {[%clk 0:00:02]}  Bc3 {[%clk 0:01:16]} 35. Rxa4 {[%clk 0:00:01]}  Rxa4 {[%clk 0:01:15]} 36. Bxa4 {[%clk 0:00:02]}  Rb1 {[%clk 0:01:16]} 0-1


[Site "https://www.chess.com"]